fUSD/lending_fUSD_20240905
["ID","MTS","AMOUNT","RATE_DAILY","PERIOD"]
[337267338,1725561045109,-227.980616,0.00014895,2]
[337267339,1725561045119,-227.980616,0.00014895,2]
[337267340,1725561045128,-500.0,0.00014895,2]
[337267341,1725561045137,-151.0,0.00014895,2]
[337267342,1725561045147,-151.0,0.00014895,2]
[337267343,1725561045156,-500.0,0.00014895,2]
[337267344,1725561045165,-151.0,0.00014895,2]
[337267345,1725561045174,-151.0,0.00014895,2]
[337267346,1725561045184,-500.0,0.00014895,2]
[337267347,1725561045193,-500.0,0.00014895,2]
[337267348,1725561045202,-151.0,0.00014895,2]
[337267349,1725561045211,-151.0,0.00014895,2]
[337267350,1725561045220,-500.0,0.00014895,2]
[337267351,1725561045230,-500.0,0.00014895,2]
[337267352,1725561045239,-355.410473,0.00014895,2]
[337267353,1725561045248,-355.410473,0.00014895,2]
[337267354,1725561045257,-355.410473,0.00014895,2]
[337267355,1725561045266,-355.410473,0.00014895,2]
[337267356,1725561045278,-500.0,0.00014895,2]
[337267357,1725561045287,-500.0,0.00014895,2]
[337267358,1725561045297,-500.0,0.00014895,2]
[337267359,1725561045305,-151.0,0.00014895,2]
[337267360,1725561045315,-151.0,0.00014895,2]
[337267361,1725561045324,-500.0,0.00014895,2]
[337267362,1725561045333,-227.29101966,0.00014895,2]
[337267363,1725561045342,-500.0,0.00014895,2]
[337267364,1725561045352,-707.68,0.00014895,2]
[337267365,1725561045361,-290.844459,0.00014895,2]
[337267366,1725561045370,-290.844459,0.00014895,2]
[337267367,1725561045380,-151.0,0.00014895,2]
[337267368,1725561045389,-151.0,0.00014895,2]
[337267369,1725561045399,-500.0,0.00014895,2]
[337267370,1725561045408,-151.0,0.00014895,2]
[337267371,1725561045417,-151.0,0.00014895,2]
[337267372,1725561045426,-500.0,0.00014895,2]
[337267373,1725561045435,-513.02,0.00014895,2]
[337267374,1725561045444,-151.0,0.00014895,2]
[337267375,1725561045453,-151.0,0.00014895,2]
[337267376,1725561045462,-500.0,0.00014895,2]
[337267377,1725561045471,-151.0,0.00014895,2]
[337267378,1725561045605,-500.0,0.00014895,2]
[337267379,1725561045631,-151.0,0.00014895,2]
[337267380,1725561045641,-500.0,0.00014895,2]
[337267381,1725561045650,-500.0,0.00014895,2]
[337267382,1725561045659,-500.0,0.00014895,2]
[337267383,1725561045668,-500.0,0.00014895,2]
[337267384,1725561045678,-500.0,0.00014895,2]
[337267385,1725561045688,-500.0,0.00014895,2]
[337267386,1725561045697,-500.0,0.00014895,2]
[337267387,1725561045707,-417.625943,0.00014895,2]
[337267388,1725561045716,-417.625943,0.00014895,2]
[337267389,1725561045725,-500.0,0.00014895,2]
[337267390,1725561045734,-180.094005,0.00014895,2]
[337267391,1725561045744,-151.0,0.00014895,2]
[337267392,1725561045753,-180.094005,0.00014895,2]
[337267393,1725561045762,-151.0,0.00014895,2]
[337267394,1725561045771,-417.625943,0.00014895,2]
[337267395,1725561045784,-417.625943,0.00014895,2]
[337267396,1725561045793,-180.094005,0.00014895,2]
[337267397,1725561045803,-180.094005,0.00014895,2]
[337267398,1725561045812,-151.0,0.00014895,2]
[337267399,1725561045821,-151.0,0.00014895,2]
[337267400,1725561045830,-225.913472,0.00014895,2]
[337267401,1725561045839,-500.0,0.00014895,2]
[337267402,1725561045848,-500.0,0.00014895,2]
[337267403,1725561045858,-500.0,0.00014895,2]
[337267404,1725561045867,-151.0,0.00014895,2]
[337267405,1725561045877,-151.0,0.00014895,2]
[337267406,1725561045886,-151.0,0.00014895,2]
[337267407,1725561045895,-500.0,0.00014895,2]
[337267408,1725561045904,-151.0,0.00014895,2]
[337267409,1725561045914,-500.0,0.00014895,2]
[337267410,1725561045924,-500.0,0.00014895,2]
[337267411,1725561045933,-500.65356256,0.00014895,2]
[337267412,1725561045942,-500.0,0.00014895,2]
[337267413,1725561045952,-558.019882,0.00014895,2]
[337267414,1725561045962,-500.0,0.00014895,2]
[337267415,1725561045971,-558.019882,0.00014895,2]
[337267416,1725561045980,-151.0,0.00014895,2]
[337267417,1725561045989,-500.0,0.00014895,2]
[337267418,1725561045998,-3703.330969,0.00014895,2]
[337267419,1725561046007,-151.0,0.00014895,2]
[337267420,1725561046017,-151.0,0.00014895,2]
[337267421,1725561046027,-151.0,0.00014895,2]
[337267422,1725561046037,-500.0,0.00014895,2]
[337267423,1725561046046,-3703.330969,0.00014895,2]
[337267424,1725561046055,-152.943138,0.00014895,2]
[337267425,1725561046064,-294.959322,0.00014895,2]
[337267426,1725561046073,-500.0,0.00014895,2]
[337267427,1725561046082,-500.0,0.00014895,2]
[337267428,1725561046090,-151.0,0.00014895,2]
[337267429,1725561046099,-582.06356053,0.00014895,2]
[337267430,1725561046109,-500.0,0.00014895,2]
[337267431,1725561046118,-191.372075,0.00014895,2]
[337267432,1725561046128,-191.372075,0.00014895,2]
[337267433,1725561046138,-191.372075,0.00014895,2]
[337267435,1725561046148,-191.372075,0.00014895,2]
[337267436,1725561046157,-500.0,0.00014895,2]
[337267437,1725561046167,-186.920659,0.00014895,2]
[337267438,1725561046176,-506.6546,0.00014895,2]
[337267439,1725561046186,-611.26701891,0.00014895,2]
[337267440,1725561046195,-431.08403826,0.00014895,2]
[337267441,1725561046204,-186.920659,0.00014895,2]
[337267442,1725561046213,-506.6546,0.00014895,2]
[337267443,1725561046222,-500.0,0.00014895,2]
[337267444,1725561046231,-151.0,0.00014895,2]
[337267445,1725561046241,-484.257225,0.00014895,2]
[337267446,1725561046250,-484.257225,0.00014895,2]
[337267447,1725561046259,-484.257225,0.00014895,2]
[337267448,1725561046268,-160.574888,0.00014895,2]
[337267449,1725561046279,-484.257225,0.00014895,2]
[337267450,1725561046288,-500.0,0.00014895,2]
[337267451,1725561046297,-500.0,0.00014895,2]
[337267452,1725561046306,-200.0,0.00014896,2]
[337267453,1725561046315,-200.0,0.00014896,2]
[337267454,1725561046324,-150.50574594,0.00014896,2]
[337267455,1725561046333,-244.24540582,0.00014897,2]
[337267456,1725561046343,-150.50574594,0.00014898,2]
[337267457,1725561046352,-150.0,0.00014898,2]
[337267458,1725561046361,-150.50574594,0.00014899,2]
[337267459,1725561046371,-3419.5,0.000149,3]
[337267460,1725561046380,-150.50574594,0.000149,2]
[337267461,1725561046389,-1296.853,0.000149,2]
[337267462,1725561046398,-151.0,0.000149,2]
[337267463,1725561046407,-151.0,0.000149,2]
[337267464,1725561046416,-355.410473,0.000149,2]
[337267465,1725561046426,-355.410473,0.000149,2]
[337267466,1725561046435,-244.24540582,0.000149,2]
[337267467,1725561046445,-151.0,0.000149,2]
[337267468,1725561046454,-290.844459,0.000149,2]
[337267469,1725561046463,-725.01302701,0.000149,2]
[337267470,1725561046473,-558.019882,0.000149,2]
[337267471,1725561046482,-558.019882,0.000149,2]
[337267472,1725561046492,-151.0,0.000149,2]
[337267473,1725561046502,-3703.330969,0.000149,2]
[337267474,1725561046515,-151.0,0.000149,2]
[337267475,1725561046524,-3703.330969,0.000149,2]
[337267476,1725561046533,-186.920659,0.000149,2]
[337267477,1725561046543,-506.6546,0.000149,2]
[337267478,1725561046555,-186.920659,0.000149,2]
[337267479,1725561046565,-506.6546,0.000149,2]
[337267480,1725561046574,-151.0,0.000149,2]
[337267481,1725561046585,-159.831532,0.000149,2]
[337267482,1725561046597,-1210.0,0.000149,2]
[337267483,1725561046609,-317.13339458,0.000149,2]
[337267484,1725561046618,-453.668,0.00014905,2]
[337267485,1725561046630,-150.0,0.00014919,2]
[337267486,1725561046641,-150.0,0.00014938,2]
[337267487,1725561046651,-150.0,0.00014957,2]
[337267488,1725561046663,-500.0,0.00014964,2]
[337267489,1725561046674,-334.84543353,0.00014964,2]
[337267490,1725561046685,-1569.27326999,0.00014965,3]
[337267491,1725561046695,-4707.81980997,0.00014965,3]
[337267492,1725561046704,-500.0,0.00014973,2]
[337267493,1725561046713,-417.625943,0.00014974,2]
[337267494,1725561046722,-180.094005,0.00014974,2]
[337267495,1725561046732,-151.0,0.00014974,2]
[337267496,1725561046740,-417.625943,0.00014974,2]
[337267497,1725561046750,-180.094005,0.00014974,2]
[337267498,1725561046759,-151.0,0.00014974,2]
[337267499,1725561046768,-151.0,0.00014974,2]
[337267500,1725561046777,-151.0,0.00014974,2]
[337267501,1725561046786,-151.0,0.00014974,2]
[337267502,1725561046795,-191.372075,0.00014974,2]
[337267503,1725561046804,-191.372075,0.00014974,2]
[337267504,1725561046813,-6277.09307996,0.00014974,3]
[337267505,1725561046823,-12554.1861599,0.00014975,3]
[337267506,1725561046832,-151.0,0.00014975,2]
[337267507,1725561046841,-151.0,0.00014975,2]
[337267508,1725561046850,-151.0,0.00014975,2]
[337267509,1725561046859,-227.980616,0.00014975,2]
[337267510,1725561046868,-227.980616,0.00014975,2]
[337267511,1725561046877,-151.0,0.00014975,2]
[337267512,1725561046887,-151.0,0.00014975,2]
[337267513,1725561046896,-152.204228,0.00014975,2]
[337267514,1725561046905,-151.0,0.00014975,2]
[337267515,1725561046914,-151.0,0.00014975,2]
[337267516,1725561046923,-151.0,0.00014975,2]
[337267517,1725561046932,-151.0,0.00014975,2]
[337267518,1725561046941,-12915.97,0.00014975,2]
[337267519,1725561046950,-524.35,0.00014975,2]
[337267520,1725561046959,-2983.37,0.00014975,2]
[337267521,1725561046968,-2129.35,0.00014975,2]
[337267522,1725561046977,-500.0,0.00014975,2]
[337267523,1725561046987,-6707.91,0.00014975,2]
[337267524,1725561046996,-3069.75,0.00014975,2]
[337267525,1725561047005,-1596.22,0.00014975,2]
[337267526,1725561047015,-500.0,0.00014975,2]
[337267527,1725561047024,-7139.75,0.00014975,2]
[337267528,1725561047033,-506.6546,0.00014975,2]
[337267529,1725561047043,-2299.74,0.00014975,2]
[337267530,1725561047052,-506.6546,0.00014975,2]
[337267531,1725561047061,-3304.68,0.00014975,2]
[337267532,1725561047071,-3000.7,0.00014975,2]
[337267533,1725561047080,-4458.5,0.00014975,2]
[337267534,1725561047090,-484.257225,0.00014975,2]
[337267535,1725561047099,-484.257225,0.00014975,2]
[337267536,1725561047109,-1031.09,0.00014975,2]
[337267537,1725561047118,-500.0,0.00014975,2]
[337267538,1725561047127,-500.0,0.00014975,2]
[337267539,1725561047137,-1570.52,0.00014975,2]
[337267540,1725561047147,-3881.08,0.00014975,2]
[337267541,1725561047157,-826.62,0.00014975,2]
[337267542,1725561047166,-1288.44,0.00014975,2]
[337267543,1725561047175,-5322.3,0.00014975,2]
[337267544,1725561047185,-2716.66,0.00014975,2]
[337267545,1725561047194,-603.89,0.00014975,2]
[337267546,1725561047204,-500.0,0.00014975,2]
[337267547,1725561047213,-500.0,0.00014975,2]
[337267548,1725561047223,-500.0,0.00014975,2]
[337267549,1725561047233,-151.0,0.00014976,2]
[337267550,1725561047242,-151.0,0.00014976,2]
[337267551,1725561047251,-151.0,0.00014976,2]
[337267552,1725561047261,-151.0,0.00014976,2]
[337267553,1725561047271,-151.0,0.00014976,2]
[337267554,1725561047281,-151.0,0.00014976,2]
[337267555,1725561047291,-151.0,0.00014976,2]
[337267556,1725561047300,-766.100862,0.00014976,2]
[337267557,1725561047311,-766.100862,0.00014976,2]
[337267558,1725561047320,-151.0,0.00014976,2]
[337267559,1725561047334,-151.0,0.00014976,2]
[337267560,1725561047343,-3138.54653998,0.00014979,3]
[337267561,1725561047352,-500.0,0.00014984,2]
[337267562,1725561047363,-1008.11,0.00014984,2]
[337267563,1725561047372,-500.0,0.00014984,2]
[337267564,1725561047382,-500.0,0.00014984,2]
[337267565,1725561047391,-151.0,0.00014984,2]
[337267566,1725561047401,-151.0,0.00014984,2]
[337267567,1725561047410,-500.0,0.00014984,2]
[337267568,1725561047427,-500.0,0.00014984,2]
[337267569,1725561047440,-355.410473,0.00014984,2]
[337267570,1725561047450,-951.18,0.00014984,2]
[337267571,1725561047460,-355.410473,0.00014984,2]
[337267572,1725561047470,-151.0,0.00014984,2]
[337267573,1725561047479,-500.0,0.00014984,2]
[337267574,1725561047489,-290.844459,0.00014984,2]
[337267575,1725561047499,-1222.38,0.00014984,2]
[337267576,1725561047510,-151.0,0.00014984,2]
[337267577,1725561047522,-500.0,0.00014984,2]
[337267578,1725561047539,-151.0,0.00014984,2]
[337267579,1725561047549,-151.0,0.00014984,2]
[337267580,1725561047560,-500.01,0.00014984,2]
[337267581,1725561047570,-500.0,0.00014984,2]
[337267582,1725561047580,-500.0,0.00014984,2]
[337267583,1725561047589,-902.73,0.00014984,2]
[337267584,1725561047601,-500.0,0.00014984,2]
[337267585,1725561047611,-500.0,0.00014984,2]
[337267586,1725561047620,-500.0,0.00014984,2]
[337267587,1725561047630,-578.91,0.00014984,2]
[337267588,1725561047639,-500.0,0.00014984,2]
[337267589,1725561047649,-789.73,0.00014984,2]
[337267590,1725561047658,-417.625943,0.00014984,2]
[337267591,1725561047668,-180.094005,0.00014984,2]
[337267592,1725561047679,-151.0,0.00014984,2]
[337267593,1725561047688,-417.625943,0.00014984,2]
[337267594,1725561047698,-180.094005,0.00014984,2]
[337267595,1725561047708,-500.0,0.00014984,2]
[337267596,1725561047717,-500.0,0.00014984,2]
[337267597,1725561047727,-151.0,0.00014984,2]
[337267598,1725561047736,-500.0,0.00014984,2]
[337267599,1725561047746,-151.0,0.00014984,2]
[337267600,1725561047756,-558.019882,0.00014984,2]
[337267601,1725561047765,-558.019882,0.00014984,2]
[337267602,1725561047776,-558.019882,0.00014984,2]
[337267603,1725561047786,-151.0,0.00014984,2]
[337267604,1725561047795,-500.0,0.00014984,2]
[337267605,1725561047804,-558.019882,0.00014984,2]
[337267606,1725561047814,-151.0,0.00014984,2]
[337267607,1725561047823,-500.0,0.00014984,2]
[337267608,1725561047833,-3703.330969,0.00014984,2]
[337267609,1725561047842,-3703.330969,0.00014984,2]
[337267610,1725561047851,-500.0,0.00014984,2]
[337267611,1725561047861,-500.0,0.00014984,2]
[337267612,1725561047871,-151.0,0.00014984,2]
[337267613,1725561047882,-151.0,0.00014984,2]
[337267614,1725561047892,-151.0,0.00014984,2]
[337267615,1725561047902,-3703.330969,0.00014984,2]
[337267616,1725561047912,-3703.330969,0.00014984,2]
[337267617,1725561047921,-500.0,0.00014984,2]
[337267618,1725561047931,-500.0,0.00014984,2]
[337267619,1725561047942,-500.0,0.00014984,2]
[337267620,1725561047951,-1207.17,0.00014984,2]
[337267621,1725561047961,-831.73,0.00014984,2]
[337267622,1725561047970,-642.17,0.00014984,2]
[337267623,1725561047980,-851.1,0.00014984,2]
[337267624,1725561047989,-1060.02,0.00014984,2]
[337267625,1725561047999,-191.372075,0.00014984,2]
[337267626,1725561048008,-963.07,0.00014984,2]
[337267627,1725561048018,-500.0,0.00014984,2]
[337267628,1725561048027,-191.372075,0.00014984,2]
[337267629,1725561048036,-186.920659,0.00014984,2]
[337267630,1725561048045,-186.920659,0.00014984,2]
[337267631,1725561048055,-3375.0,0.00014984,2]
[337267632,1725561048064,-506.6546,0.00014984,2]
[337267633,1725561048074,-500.0,0.00014984,2]
[337267634,1725561048083,-186.920659,0.00014984,2]
[337267635,1725561048092,-186.920659,0.00014984,2]
[337267636,1725561048102,-506.6546,0.00014984,2]
[337267637,1725561048111,-500.0,0.00014984,2]
[337267638,1725561048120,-1790.61,0.00014984,2]
[337267639,1725561048129,-500.0,0.00014984,2]
[337267640,1725561048139,-500.0,0.00014984,2]
[337267641,1725561048148,-6932.94,0.00014984,2]
[337267642,1725561048158,-500.0,0.00014984,2]
[337267643,1725561048168,-500.0,0.00014984,2]
[337267644,1725561048177,-500.0,0.00014984,2]
[337267645,1725561048186,-500.0,0.00014984,2]
[337267646,1725561048196,-500.0,0.00014984,2]
[337267647,1725561048205,-151.0,0.00014984,2]
[337267648,1725561048214,-151.0,0.00014984,2]
[337267649,1725561048223,-484.257225,0.00014984,2]
[337267650,1725561048233,-837.63,0.00014984,2]
[337267651,1725561048242,-484.257225,0.00014984,2]
[337267652,1725561048251,-500.0,0.00014984,2]
[337267653,1725561048260,-3430.41,0.00014984,2]
[337267654,1725561048270,-3565.08,0.00014984,2]
[337267655,1725561048279,-500.0,0.00014984,2]
[337267656,1725561048289,-2448.07,0.00014984,2]
[337267657,1725561048298,-558.01204169,0.00014984,2]
[337267658,1725561048308,-500.0,0.00014984,2]
[337267659,1725561048321,-10228.17,0.00014984,2]
[337267660,1725561048330,-4461.09,0.00014984,2]
[337267661,1725561048340,-500.0,0.00014984,2]
[337267662,1725561048350,-500.0,0.00014984,2]
[337267663,1725561048360,-2309.19,0.00014984,2]
[337267664,1725561048370,-842.08,0.00014984,2]
[337267665,1725561048379,-500.0,0.00014984,2]
[337267666,1725561048389,-2310.54,0.00014984,2]
[337267667,1725561048399,-674.13,0.00014984,2]
[337267668,1725561048409,-921.26,0.00014984,2]
[337267669,1725561048418,-889.71,0.00014984,2]
[337267670,1725561048428,-500.0,0.00014984,2]
[337267671,1725561048603,-500.0,0.00014984,2]
[337267672,1725561048613,-4988.25,0.00014984,2]
[337267673,1725561048623,-881.32,0.00014984,2]
[337267674,1725561048633,-1762.89,0.00014984,2]
[337267675,1725561048642,-644.58,0.00014984,2]
[337267676,1725561048652,-1269.27,0.00014984,2]
[337267677,1725561048661,-500.0,0.00014984,2]
[337267678,1725561048670,-1570.68,0.00014984,2]
[337267679,1725561048681,-537.55,0.00014984,2]
[337267680,1725561048690,-905.02,0.00014984,2]
[337267681,1725561048699,-500.0,0.00014984,2]
[337267682,1725561048708,-500.0,0.00014984,2]
[337267683,1725561048717,-500.0,0.00014984,2]
[337267684,1725561048727,-810.24,0.00014984,2]
[337267685,1725561048736,-734.12,0.00014984,2]
[337267686,1725561048745,-500.0,0.00014984,2]
[337267687,1725561048754,-768.05,0.00014984,2]
[337267688,1725561048763,-2643.59,0.00014984,2]
[337267689,1725561048772,-500.0,0.00014984,2]
[337267690,1725561048782,-186.14639174,0.00014984,2]
[337267691,1725561048791,-617.0,0.00014985,2]
[337267692,1725561048801,-238.63170135,0.00014985,2]
[337267693,1725561048810,-255.31857649,0.00014985,2]
[337267694,1725561048819,-327.41,0.00014985,2]
[337267695,1725561048829,-484.39228415,0.00014985,2]
[337267696,1725561048838,-284.85935321,0.00014985,2]
[337267697,1725561048848,-590.68,0.00014985,2]
[337267698,1725561048857,-670.36,0.00014985,2]
[337267699,1725561048867,-301.6,0.00014985,2]
[337267700,1725561048876,-524.84,0.00014985,2]
[337267701,1725561048886,-383.36,0.00014985,2]
[337267702,1725561048895,-595.98591369,0.00014985,2]
[337267703,1725561048904,-521.24,0.00014985,2]
[337267704,1725561048913,-151.0,0.00014985,2]
[337267705,1725561048922,-151.0,0.00014985,2]
[337267706,1725561048931,-151.0,0.00014985,2]
[337267707,1725561048940,-151.0,0.00014985,2]
[337267708,1725561048950,-151.0,0.00014985,2]
[337267709,1725561048959,-196.993533,0.00014985,2]
[337267710,1725561048968,-151.0,0.00014985,2]
[337267711,1725561048978,-179.176588,0.00014985,2]
[337267712,1725561048988,-151.0,0.00014985,2]
[337267713,1725561048997,-151.0,0.00014985,2]
[337267714,1725561049007,-197.408545,0.00014985,2]
[337267715,1725561049016,-500.0,0.00014985,2]
[337267716,1725561049025,-500.0,0.00014985,2]
[337267717,1725561049034,-766.100862,0.00014985,2]
[337267718,1725561049043,-766.100862,0.00014985,2]
[337267719,1725561049052,-766.100862,0.00014985,2]
[337267720,1725561049061,-766.100862,0.00014985,2]
[337267721,1725561049070,-500.0,0.00014985,2]
[337267722,1725561049080,-500.0,0.00014985,2]
[337267723,1725561049089,-151.0,0.00014985,2]
[337267724,1725561049098,-151.0,0.00014985,2]
[337267725,1725561049108,-500.0,0.00014985,2]
[337267726,1725561049117,-500.0,0.00014985,2]
[337267727,1725561049126,-980.915738,0.00014985,2]
[337267728,1725561049135,-980.915738,0.00014985,2]
[337267729,1725561049144,-954.73,0.00014985,2]
[337267730,1725561049154,-151.0,0.00014985,2]
[337267731,1725561049164,-151.0,0.00014985,2]
[337267732,1725561049173,-500.0,0.00014985,2]
[337267733,1725561049183,-500.0,0.00014985,2]
[337267734,1725561049193,-500.0,0.00014985,2]
[337267735,1725561049202,-500.0,0.00014985,2]
[337267736,1725561049211,-385.69891501,0.00014985,2]
[337267737,1725561049221,-711.3,0.00014985,2]
[337267738,1725561049230,-500.0,0.00014985,2]
[337267739,1725561049240,-351.779963,0.00014985,2]
[337267740,1725561049249,-351.779963,0.00014985,2]
[337267741,1725561049259,-351.779963,0.00014985,2]
[337267742,1725561049268,-351.779963,0.00014985,2]
[337267743,1725561049278,-151.0,0.00014985,2]
[337267744,1725561049287,-151.0,0.00014985,2]
[337267745,1725561049297,-151.0,0.00014985,2]
[337267746,1725561049307,-151.0,0.00014985,2]
[337267747,1725561049317,-151.0,0.00014985,2]
[337267748,1725561049327,-500.0,0.00014985,2]
[337267749,1725561049336,-151.0,0.00014985,2]
[337267750,1725561049345,-151.0,0.00014985,2]
[337267751,1725561049355,-151.0,0.00014985,2]
[337267752,1725561049364,-500.0,0.00014985,2]
[337267753,1725561049373,-500.0,0.00014985,2]
[337267754,1725561049383,-500.0,0.00014985,2]
[337267755,1725561049392,-500.0,0.00014985,2]
[337267756,1725561049401,-500.0,0.00014985,2]
[337267757,1725561049411,-500.0,0.00014985,2]
[337267758,1725561049420,-500.0,0.00014985,2]
[337267759,1725561049430,-500.0,0.00014985,2]
[337267760,1725561049440,-500.0,0.00014985,2]
[337267761,1725561049449,-500.0,0.00014985,2]
[337267762,1725561049458,-500.0,0.00014985,2]
[337267763,1725561049468,-500.0,0.00014985,2]
[337267764,1725561049477,-799.09,0.00014985,2]
[337267765,1725561049487,-500.0,0.00014985,2]
[337267766,1725561049497,-500.0,0.00014985,2]
[337267767,1725561049506,-151.0,0.00014985,2]
[337267768,1725561049519,-153.71794,0.00014985,2]
[337267769,1725561049529,-590.25,0.00014985,2]
[337267770,1725561049538,-500.0,0.00014985,2]
[337267771,1725561049547,-151.0,0.00014985,2]
[337267772,1725561049556,-151.0,0.00014985,2]
[337267773,1725561049566,-151.0,0.00014985,2]
[337267774,1725561049575,-518.13453789,0.00014985,2]
[337267775,1725561049584,-970.13,0.00014985,2]
[337267776,1725561049594,-500.0,0.00014985,2]
[337267777,1725561049604,-500.0,0.00014985,2]
[337267778,1725561049614,-227.980616,0.00014985,2]
[337267779,1725561049624,-227.980616,0.00014985,2]
[337267780,1725561049633,-227.980616,0.00014985,2]
[337267781,1725561049643,-227.980616,0.00014985,2]
[337267782,1725561049652,-501.01250628,0.00014985,2]
[337267783,1725561049662,-227.980616,0.00014985,2]
[337267784,1725561049671,-227.980616,0.00014985,2]
[337267785,1725561049680,-227.980616,0.00014985,2]
[337267786,1725561049690,-227.980616,0.00014985,2]
[337267787,1725561049699,-518.0545805,0.00014985,2]
[337267788,1725561049710,-500.0,0.00014985,2]
[337267789,1725561049719,-151.0,0.00014985,2]
[337267790,1725561049728,-151.0,0.00014985,2]
[337267791,1725561049738,-151.0,0.00014985,2]
[337267792,1725561049747,-151.0,0.00014985,2]
[337267793,1725561049756,-500.0,0.00014985,2]
[337267794,1725561049766,-151.0,0.00014985,2]
[337267795,1725561049775,-151.0,0.00014985,2]
[337267796,1725561049785,-151.0,0.00014985,2]
[337267797,1725561049794,-151.0,0.00014985,2]
[337267798,1725561049803,-500.0,0.00014985,2]
[337267799,1725561049813,-500.0,0.00014985,2]
[337267800,1725561049822,-872.57,0.00014985,2]
[337267801,1725561049831,-500.0,0.00014985,2]
[337267802,1725561049841,-500.0,0.00014985,2]
[337267803,1725561049850,-500.0,0.00014985,2]
[337267804,1725561049859,-500.0,0.00014985,2]
[337267805,1725561049869,-355.410473,0.00014985,2]
[337267806,1725561049878,-355.410473,0.00014985,2]
[337267807,1725561049888,-355.410473,0.00014985,2]
[337267808,1725561049897,-355.410473,0.00014985,2]
[337267809,1725561049906,-500.0,0.00014985,2]
[337267810,1725561049915,-355.410473,0.00014985,2]
[337267811,1725561049924,-355.410473,0.00014985,2]
[337267812,1725561049934,-698.74,0.00014985,2]
[337267813,1725561049943,-715.76,0.00014985,2]
[337267814,1725561049953,-500.0,0.00014985,2]
[337267815,1725561049963,-500.0,0.00014985,2]
[337267816,1725561049973,-152.377228,0.00014985,2]
[337267817,1725561049982,-500.0,0.00014985,2]
[337267818,1725561049992,-500.0,0.00014985,2]
[337267819,1725561050002,-707.68,0.00014985,2]
[337267820,1725561050012,-290.844459,0.00014985,2]
[337267821,1725561050022,-290.844459,0.00014985,2]
[337267822,1725561050033,-290.844459,0.00014985,2]
[337267823,1725561050043,-503.60570515,0.00014985,2]
[337267824,1725561050052,-151.0,0.00014985,2]
[337267825,1725561050062,-151.0,0.00014985,2]
[337267826,1725561050072,-151.0,0.00014985,2]
[337267827,1725561050081,-500.0,0.00014985,2]
[337267828,1725561050091,-500.0,0.00014985,2]
[337267829,1725561050100,-151.0,0.00014985,2]
[337267830,1725561050111,-151.0,0.00014985,2]
[337267831,1725561050120,-151.0,0.00014985,2]
[337267832,1725561050130,-513.02,0.00014985,2]
[337267833,1725561050139,-500.0,0.00014985,2]
[337267834,1725561050149,-154.00808541,0.00014985,2]
[337267835,1725561050159,-151.0,0.00014985,2]
[337267836,1725561050168,-151.0,0.00014985,2]
[337267837,1725561050178,-500.0,0.00014985,2]
[337267838,1725561050188,-156.272151,0.00014985,2]